bitfinex-derivatives/quotes_BTCF0:USTF0_20241217
["timestamp","ask_amount","ask_price","bid_price","bid_amount"]
[1734436303369,1.19277626,106720.0,106710.0,0.5183556]
[1734436303582,1.16075222,106720.0,106710.0,0.5183556]
[1734436304071,1.16075222,106720.0,106710.0,0.57611958]
[1734436308879,1.16075222,106720.0,106710.0,0.407658]
[1734436309067,1.16075222,106720.0,106710.0,0.49188879]
[1734436309267,1.46887344,106720.0,106710.0,0.046858]
[1734436309465,1.46887344,106720.0,106710.0,0.13108879]
[1734436309466,1.14157344,106720.0,106710.0,0.13108879]
[1734436310473,1.17337344,106720.0,106710.0,0.13108879]
[1734436311066,1.53417344,106720.0,106710.0,0.13108879]
[1734436311268,1.17337344,106720.0,106710.0,0.13108879]
[1734436315574,1.17337344,106720.0,106710.0,0.21531958]
[1734436315782,1.14157344,106720.0,106710.0,0.57611958]
[1734436315981,1.10807344,106720.0,106710.0,0.57611958]
[1734436316276,1.10807344,106720.0,106710.0,0.21531958]
[1734436316677,1.10807344,106720.0,106710.0,0.23419192]
[1734436317368,1.10807344,106720.0,106710.0,0.14996113]
[1734436317576,1.46887344,106720.0,106710.0,0.14996113]
[1734436317774,1.10807344,106720.0,106710.0,0.14996113]
[1734436321472,1.46887344,106720.0,106710.0,0.14996113]
[1734436322874,1.10807344,106720.0,106710.0,0.23419192]
[1734436323077,1.10807344,106720.0,106710.0,0.14996113]
[1734436324281,1.46887344,106720.0,106710.0,0.06573034]
[1734436324481,1.46887344,106720.0,106710.0,0.14996113]
[1734436324678,1.10807344,106720.0,106710.0,0.14996113]
[1734436325184,1.10807344,106720.0,106710.0,0.15959157]
[1734436325777,1.10807344,106720.0,106710.0,0.60462236]
[1734436326275,1.10807344,106720.0,106710.0,0.63882236]
[1734436326476,1.10807344,106720.0,106710.0,0.27802236]
[1734436326679,1.10807344,106720.0,106710.0,0.15959157]
[1734436326985,1.10807344,106720.0,106710.0,0.07536078]
[1734436327280,1.10807344,106720.0,106710.0,0.15959157]
[1734436327476,1.14147344,106720.0,106710.0,0.15959157]
[1734436328180,1.14147344,106720.0,106710.0,0.14996113]
[1734436328786,1.54912644,106720.0,106710.0,0.14996113]
[1734436328997,1.18832644,106720.0,106710.0,0.14996113]
[1734436329180,1.54912644,106720.0,106710.0,0.14996113]
[1734436329793,1.18832644,106720.0,106710.0,0.76556658]
[1734436330176,1.18832644,106720.0,106710.0,0.14996113]
[1734436330381,1.54912644,106720.0,106710.0,0.14996113]
[1734436330685,1.22022644,106720.0,106710.0,0.76556658]
[1734436330881,1.17337344,106720.0,106710.0,0.76556658]
[1734436332990,1.17337344,106720.0,106710.0,0.14996113]
[1734436333489,1.58102644,106720.0,106710.0,0.06573034]
[1734436333991,1.22022644,106720.0,106710.0,0.06573034]
[1734436334381,1.58102644,106720.0,106710.0,0.06573034]
[1734436334587,1.52834395,106720.0,106710.0,0.06573034]
[1734436334791,1.52834395,106720.0,106710.0,0.68323274]
[1734436335090,1.16754395,106720.0,106710.0,0.68323274]
[1734436335287,1.16754395,106720.0,106710.0,0.06573034]
[1734436335490,1.52834395,106720.0,106710.0,0.68326793]
[1734436336880,1.52834395,106720.0,106710.0,0.06573034]
[1734436338285,1.16754395,106720.0,106710.0,0.06573034]
[1734436338798,1.52834395,106720.0,106710.0,0.01887234]
[1734436338983,1.61257474,106720.0,106700.0,0.61753759]
[1734436339297,0.046862,106700.0,106690.0,0.83930992]
[1734436339590,0.046862,106700.0,106690.0,0.92354071]
[1734436339793,0.113162,106700.0,106690.0,0.49466273]
[1734436340394,0.113162,106700.0,106690.0,0.30600312]
[1734436340594,0.113162,106700.0,106690.0,0.15923166]
[1734436340887,0.473962,106700.0,106690.0,0.15923166]
[1734436341093,0.473962,106700.0,106690.0,0.07500087]
[1734436341395,0.473962,106700.0,106690.0,0.15923166]
[1734436341583,0.473962,106700.0,106690.0,0.1497669]
[1734436341789,0.473962,106700.0,106690.0,0.76721946]
[1734436342091,0.473962,106700.0,106690.0,0.00011241]
[1734436342593,0.473962,106700.0,106690.0,0.61735532]
[1734436342781,0.55819279,106700.0,106690.0,0.00011241]
[1734436343497,0.55819279,106700.0,106690.0,0.56085386]
[1734436343796,0.55819279,106700.0,106690.0,0.00011241]
[1734436343992,0.55819279,106700.0,106690.0,0.56085318]
[1734436344183,0.55819279,106700.0,106690.0,0.00011241]
[1734436344389,0.55819279,106700.0,106690.0,0.56059595]
[1734436344590,0.473962,106700.0,106690.0,0.00011241]
[1734436345479,0.55819279,106700.0,106690.0,0.00011241]
[1734436347384,0.473962,106700.0,106690.0,0.00011241]
[1734436347981,0.046867,106690.0,106670.0,0.62601016]
[1734436348292,0.473871,106680.0,106670.0,0.62601016]
[1734436348792,0.473871,106680.0,106670.0,0.60735616]
[1734436348994,0.473871,106680.0,106670.0,0.56056787]
[1734436349290,0.473871,106680.0,106670.0,8.571e-05]
[1734436351194,0.505571,106680.0,106670.0,8.571e-05]
[1734436352196,0.58992265,106680.0,106670.0,8.571e-05]
[1734436352497,0.50569186,106680.0,106670.0,8.571e-05]
[1734436353088,0.50569186,106680.0,106670.0,0.04696071]
[1734436353492,0.50569186,106680.0,106670.0,0.1311915]
[1734436353697,0.50569186,106680.0,106670.0,0.04696071]
[1734436354393,0.42712086,106680.0,106670.0,0.1311915]
[1734436354689,0.00012086,106680.0,106670.0,0.1311915]
[1734436354893,0.00012086,106680.0,106670.0,0.1962915]
[1734436355396,0.00012086,106680.0,106670.0,0.75677366]
[1734436355805,0.00012086,106680.0,106670.0,0.79037366]
[1734436356091,0.40779186,106680.0,106670.0,0.67254287]
[1734436356295,0.40779186,106680.0,106670.0,0.56056787]
[1734436356495,0.40779186,106680.0,106670.0,8.571e-05]
[1734436359098,0.00012086,106680.0,106670.0,0.1311915]
[1734436359391,0.00012086,106680.0,106670.0,0.1657915]
[1734436359593,0.00012086,106680.0,106670.0,0.2321915]
[1734436359800,0.04699186,106680.0,106670.0,0.79267366]
[1734436359988,0.00012086,106680.0,106670.0,0.79267366]
[1734436360190,0.00012086,106680.0,106670.0,0.84943441]
[1734436360396,0.475268,106690.0,106680.0,0.046871]
[1734436360591,0.475268,106690.0,106680.0,0.60590371]
[1734436361695,0.475268,106690.0,106680.0,0.046871]
[1734436361903,0.442068,106690.0,106680.0,0.13110179]
[1734436362289,0.3608,106690.0,106680.0,0.13110179]
[1734436362500,0.3608,106690.0,106680.0,0.6901345]
[1734436362706,0.0001039,106700.0,106690.0,0.046867]
[1734436363000,0.0001039,106700.0,106690.0,1.1738407]
[1734436363202,1.05539095,106720.0,106690.0,0.85659779]
[1734436363392,1.05539095,106720.0,106710.0,0.7483317]
[1734436363593,1.05539095,106720.0,106710.0,0.046858]
[1734436364900,1.41619095,106720.0,106710.0,0.046858]
[1734436366593,0.3608,106720.0,106710.0,0.046858]
[1734436367500,0.475652,106730.0,106710.0,0.046854]
[1734436367689,0.475652,106730.0,106720.0,0.046853]
[1734436368705,0.475652,106730.0,106710.0,0.7821277]
[1734436368706,0.046853,106720.0,106710.0,0.080656]
[1734436369099,0.51303079,106730.0,106710.0,0.127511]
[1734436369100,0.47565,106730.0,106710.0,0.127511]
[1734436369296,0.47565,106730.0,106720.0,0.046853]
[1734436370200,0.40765,106730.0,106720.0,0.04694968]
[1734436371203,0.3608,106730.0,106720.0,0.04694968]
[1734436371399,0.3608,106730.0,106720.0,0.13118047]
[1734436374105,0.3608,106730.0,106720.0,0.04694968]
[1734436375514,0.3608,106730.0,106720.0,0.13118047]
[1734436376703,0.407649,106730.0,106720.0,0.04694968]
[1734436378805,0.3608,106730.0,106720.0,0.04694968]
[1734436379011,0.3608,106730.0,106720.0,0.13118047]
[1734436381424,0.36090839,106740.0,106720.0,0.13118047]
[1734436381425,0.407632,106770.0,106760.0,0.046836]
[1734436381715,0.4334,106770.0,106760.0,0.13106679]
[1734436382507,0.3967,106770.0,106760.0,0.13117733]
[1734436382705,0.082731,106770.0,106760.0,0.13117733]
[1734436382915,0.0359,106770.0,106760.0,0.13117733]
[1734436383705,0.407629,106780.0,106760.0,0.13117733]
[1734436383912,0.407629,106780.0,106770.0,0.13106179]
[1734436384115,0.407629,106780.0,106760.0,0.16827533]
[1734436384315,0.046831,106770.0,106760.0,0.16827533]
[1734436384713,0.407629,106780.0,106760.0,0.16827533]
[1734436385315,0.407629,106780.0,106770.0,0.046831]
[1734436385511,0.407629,106780.0,106770.0,0.13106179]
[1734436385714,0.046829,106780.0,106770.0,0.13106179]
[1734436385923,0.48104155,106790.0,106780.0,0.046827]
[1734436386122,0.48104155,106790.0,106780.0,0.13105779]
[1734436388312,0.44414155,106790.0,106780.0,0.13105779]
[1734436388610,0.39731655,106790.0,106780.0,0.13105779]
[1734436389304,0.36091655,106790.0,106780.0,0.13105779]
[1734436389916,0.00011655,106790.0,106780.0,0.13105779]
[1734436391119,0.23007,106830.0,106800.0,0.046818]
[1734436391418,0.23007,106830.0,106820.0,0.04681]
[1734436391623,0.23007,106830.0,106820.0,0.13104079]
[1734436392113,0.23007,106830.0,106820.0,0.49193991]
[1734436393814,0.276875,106830.0,106820.0,0.44512991]
[1734436394014,0.637675,106830.0,106820.0,9.912e-05]
[1734436394211,0.72190579,106830.0,106820.0,9.912e-05]
[1734436394614,0.276875,106830.0,106820.0,9.912e-05]
[1734436394812,0.276875,106830.0,106820.0,0.08432991]
[1734436395614,0.276875,106830.0,106820.0,0.13113991]
[1734436395921,0.276875,106830.0,106820.0,0.08432991]
[1734436396126,0.276875,106830.0,106820.0,9.912e-05]
[1734436396512,0.637675,106830.0,106820.0,9.912e-05]
[1734436396720,0.276875,106830.0,106820.0,9.912e-05]
[1734436396911,0.276875,106830.0,106820.0,0.13113991]
[1734436397311,0.276875,106830.0,106820.0,0.04690912]
[1734436398121,0.276875,106830.0,106820.0,9.912e-05]
[1734436398314,0.637675,106830.0,106820.0,9.912e-05]
[1734436398518,0.276875,106830.0,106820.0,9.912e-05]
[1734436399027,0.637675,106830.0,106820.0,9.912e-05]
[1734436400119,0.276875,106830.0,106820.0,0.13113991]
[1734436400725,0.276875,106830.0,106820.0,0.04690912]
[1734436402416,0.276875,106830.0,106800.0,0.51030339]
[1734436402417,0.637675,106830.0,106790.0,0.83260309]
[1734436402619,0.3608,106820.0,106810.0,0.13104479]
[1734436403224,0.40761,106820.0,106810.0,0.13104479]
[1734436403530,0.44501,106820.0,106810.0,0.13113368]
[1734436403747,0.44501,106820.0,106810.0,8.889e-05]
[1734436403932,0.48021,106820.0,106810.0,8.889e-05]
[1734436405424,0.56444079,106820.0,106810.0,8.889e-05]
[1734436406030,0.48021,106820.0,106810.0,8.889e-05]
[1734436406828,0.48956523,106820.0,106810.0,0.13113368]
[1734436407220,0.48021,106820.0,106810.0,0.08423079]
[1734436407715,0.48021,106820.0,106810.0,0.13104479]
[1734436407913,0.44501,106820.0,106810.0,0.13104479]
[1734436408224,0.40761,106820.0,106810.0,0.13111473]
[1734436408419,0.40761,106820.0,106810.0,6.994e-05]
[1734436410527,0.40761,106820.0,106810.0,0.08430073]
[1734436410923,0.40761,106820.0,106810.0,6.994e-05]
[1734436412529,0.40761,106820.0,106810.0,0.13111473]
[1734436416225,0.44451,106820.0,106810.0,0.13111473]
[1734436421030,0.44451,106820.0,106810.0,0.04688394]
[1734436421836,0.52874079,106820.0,106810.0,6.994e-05]
[1734436422127,0.52874079,106820.0,106780.0,0.53574603]
[1734436422128,0.046823,106790.0,106780.0,0.79098639]
[1734436422331,0.31481043,106790.0,106780.0,0.65122866]
[1734436422534,0.046827,106780.0,106770.0,1.70596875]
[1734436422723,0.046827,106780.0,106770.0,1.09534898]
[1734436422923,0.046827,106780.0,106770.0,1.09543365]
[1734436423121,0.046827,106780.0,106770.0,1.08765688]
[1734436424132,0.046827,106780.0,106770.0,0.52714346]
[1734436424329,0.39933343,106790.0,106780.0,0.046827]
[1734436424630,0.39933343,106790.0,106780.0,0.13105779]
[1734436425321,0.445323,106790.0,106780.0,0.13105779]
[1734436425833,0.445323,106790.0,106780.0,0.08423079]
[1734436428427,0.445323,106790.0,106780.0,0.13105779]
[1734436431033,0.445323,106790.0,106780.0,0.046827]
[1734436432240,0.445323,106790.0,106780.0,0.60734042]
[1734436432939,0.445323,106790.0,106780.0,0.046827]
[1734436433137,0.445323,106790.0,106780.0,0.13105779]
[1734436435537,0.445323,106790.0,106780.0,0.046827]
[1734436437146,0.445323,106790.0,106780.0,0.60734042]
[1734436437538,0.445323,106790.0,106780.0,0.56051342]
[1734436438053,0.52955379,106790.0,106780.0,0.56051342]
[1734436438231,0.046827,106780.0,106770.0,0.60742909]
[1734436438435,0.407627,106780.0,106770.0,0.04691567]
[1734436438635,0.046827,106780.0,106770.0,0.13114646]
[1734436438840,0.445325,106790.0,106780.0,0.046827]
[1734436439038,0.445325,106790.0,106780.0,1.05237121]
[1734436439039,0.0377,106790.0,106780.0,1.05237121]
[1734436439346,0.046816,106810.0,106800.0,0.046818]
[1734436439647,0.3986,106820.0,106800.0,1.02304503]
[1734436439947,0.445411,106820.0,106810.0,0.046814]
[1734436440531,0.445411,106820.0,106810.0,0.13104479]
[1734436440736,0.445411,106820.0,106810.0,0.7552467]
[1734436441337,0.445411,106820.0,106810.0,0.13981967]
[1734436442339,0.445411,106820.0,106810.0,0.7552467]
[1734436442939,0.445411,106820.0,106810.0,0.13981967]
[1734436443245,0.445411,106820.0,106810.0,0.13104479]
[1734436443646,0.0378,106820.0,106810.0,0.49184479]
[1734436443842,0.0378,106820.0,106810.0,1.1160467]
[1734436445747,0.0378,106820.0,106810.0,0.7552467]
[1734436445951,0.0378,106820.0,106810.0,1.1160467]
[1734436446144,0.0378,106820.0,106810.0,0.50073942]
[1734436446448,0.0378,106820.0,106810.0,0.13993942]
[1734436446848,0.0378,106820.0,106810.0,0.13116454]
[1734436447448,0.0378,106820.0,106810.0,0.49196454]
[1734436447749,0.0378,106820.0,106810.0,0.13116454]
[1734436449143,0.0378,106820.0,106810.0,0.49196454]
[1734436449344,0.0378,106820.0,106810.0,0.13116454]
[1734436449637,0.08461,106820.0,106810.0,0.04693375]
[1734436453454,0.08461,106820.0,106810.0,0.06549957]
[1734436454939,0.44541,106820.0,106810.0,0.06549957]
[1734436457057,0.08461,106820.0,106810.0,0.06549957]
[1734436457446,0.44541,106820.0,106810.0,0.06549957]
[1734436457652,0.44541,106820.0,106810.0,0.51053036]
[1734436457653,0.0378,106820.0,106810.0,0.51053036]
[1734436457963,0.0378,106820.0,106810.0,0.14973036]
[1734436459151,0.08461,106820.0,106810.0,0.14973036]
[1734436462860,0.08461,106820.0,106810.0,0.06549957]
[1734436463457,0.44541,106820.0,106800.0,1.02298905]
[1734436463652,0.44541,106820.0,106810.0,0.66224103]
[1734436463861,0.44541,106820.0,106810.0,0.67101591]
[1734436464057,0.44541,106820.0,106810.0,0.66224103]
[1734436464355,0.44541,106820.0,106810.0,0.046814]
[1734436464561,0.44541,106820.0,106810.0,0.04689588]
[1734436466251,0.44541,106820.0,106810.0,0.05567076]
[1734436466545,0.44541,106820.0,106810.0,0.67109779]
[1734436467065,0.3459669,106820.0,106810.0,0.67109779]
[1734436467361,0.3608,106820.0,106810.0,0.67109779]
[1734436467947,0.3608,106820.0,106810.0,0.66232291]
[1734436468152,0.40761,106820.0,106810.0,0.68083146]
[1734436468763,0.40761,106820.0,106810.0,0.06540443]
[1734436469957,0.40761,106820.0,106810.0,0.24303594]
[1734436470154,0.40761,106820.0,106810.0,0.05566815]
[1734436470354,0.47411,106820.0,106810.0,0.05566815]
[1734436470549,0.47411,106820.0,106810.0,0.67282344]
[1734436472053,0.47411,106820.0,106810.0,0.04689588]
[1734436473471,0.47411,106820.0,106810.0,0.67282344]
[1734436476364,0.48095347,106820.0,106810.0,0.67282344]
[1734436477159,0.40761,106820.0,106810.0,0.75705423]
[1734436477356,0.3608,106820.0,106810.0,0.75705423]
[1734436477862,0.672877,106830.0,106820.0,0.04681]
[1734436478057,0.26527,106830.0,106820.0,0.13104079]
[1734436478253,0.312075,106830.0,106820.0,0.13104079]
[1734436478855,0.672875,106830.0,106820.0,0.13104079]
[1734436479060,0.23007,106830.0,106820.0,0.13104079]
[1734436479260,0.23007,106830.0,106820.0,0.16754079]
[1734436482668,0.23007,106830.0,106820.0,0.52834079]
[1734436482880,0.23007,106830.0,106820.0,1.14549608]
[1734436484158,0.23007,106830.0,106820.0,1.22972687]
[1734436484362,0.23007,106830.0,106820.0,1.23849914]
[1734436484563,0.477397,106850.0,106840.0,0.046801]
[1734436484762,0.48399158,106850.0,106840.0,0.13103179]
[1734436485169,0.477397,106850.0,106840.0,0.13103179]
[1734436485575,0.116597,106850.0,106840.0,0.13103179]
[1734436485876,0.477397,106850.0,106840.0,0.046801]
[1734436492078,0.046801,106840.0,106830.0,0.046801]
[1734436492268,0.407601,106840.0,106830.0,0.046801]
[1734436493769,0.477399,106850.0,106840.0,0.046801]
[1734436503391,0.4306,106850.0,106840.0,0.13103179]
[1734436503684,0.0698,106850.0,106840.0,0.13103179]
[1734436504072,0.0698,106850.0,106840.0,0.10195432]
[1734436504278,0.4306,106850.0,106840.0,0.10195432]
[1734436504493,0.477396,106850.0,106840.0,0.10195432]
[1734436505679,0.53254932,106850.0,106830.0,0.10195532]
[1734436505983,0.49167268,106840.0,106820.0,0.64122161]
[1734436506282,0.5209576,106830.0,106820.0,0.00877227]
[1734436506476,0.5879576,106830.0,106820.0,0.62484411]
[1734436506672,0.5879576,106830.0,106820.0,0.00877227]
[1734436507077,0.04681,106820.0,106810.0,0.67173699]
[1734436507269,0.49168168,106820.0,106810.0,0.67173699]
[1734436507477,0.49168168,106820.0,106810.0,0.62492599]
[1734436507680,0.49168168,106820.0,106810.0,8.188e-05]
[1734436508978,0.79168168,106820.0,106810.0,8.188e-05]
[1734436510480,0.79168168,106820.0,106810.0,1e-08]
[1734436510985,0.046827,106780.0,106770.0,0.60611454]
[1734436511185,0.407627,106780.0,106770.0,0.60611454]
[1734436511579,0.407627,106780.0,106770.0,0.04683]
[1734436511889,0.407627,106780.0,106770.0,0.04692966]
[1734436512074,0.407627,106780.0,106770.0,0.13100134]
[1734436512787,0.407627,106780.0,106770.0,0.04692966]
[1734436512788,0.046827,106780.0,106770.0,0.04692966]
[1734436513278,0.0329,106790.0,106780.0,0.046827]
[1734436513477,0.441817,106810.0,106800.0,0.046818]
[1734436516487,0.407617,106810.0,106800.0,0.046818]
[1734436516987,0.3608,106810.0,106800.0,0.13088968]
[1734436517775,0.407614,106810.0,106800.0,0.046818]
[1734436520393,0.046814,106810.0,106800.0,0.046818]
[1734436520789,0.407614,106810.0,106800.0,0.13088968]
[1734436520990,0.407614,106810.0,106800.0,0.046818]
[1734436521188,0.046818,106800.0,106790.0,0.24023702]
[1734436521393,0.046818,106800.0,106790.0,0.115321]
[1734436523083,0.407618,106800.0,106790.0,0.080121]
[1734436526688,0.046818,106800.0,106790.0,0.16419268]
[1734436527088,0.407618,106800.0,106790.0,0.16419268]
[1734436527295,0.046818,106800.0,106790.0,0.16419268]
[1734436528696,0.442216,106810.0,106800.0,0.046818]
[1734436528895,0.442216,106810.0,106800.0,0.13088968]
[1734436529401,0.442216,106810.0,106800.0,0.046818]
[1734436529698,0.3608,106810.0,106800.0,0.13088968]
[1734436529897,0.3608,106810.0,106800.0,0.20118968]
[1734436531902,0.3608,106810.0,106800.0,0.23788968]
[1734436532103,0.407611,106820.0,106810.0,0.046814]
[1734436536605,0.407611,106820.0,106810.0,0.13088568]
[1734436537501,0.407611,106820.0,106810.0,0.046814]
[1734436542806,0.046811,106820.0,106810.0,0.046814]
[1734436543003,0.407611,106820.0,106810.0,0.046814]
[1734436545000,0.52386156,106830.0,106820.0,0.04681]
[1734436545197,0.44095456,106830.0,106820.0,0.13094859]
[1734436545400,0.407603,106840.0,106830.0,0.046805]
[1734436545611,0.407603,106840.0,106830.0,0.13087668]
[1734436545814,0.407603,106840.0,106830.0,0.046805]
[1734436551304,0.046803,106840.0,106830.0,0.046805]
[1734436552015,0.407603,106840.0,106830.0,0.046805]
[1734436559916,0.407603,106840.0,106830.0,0.05557745]
[1734436561714,0.407603,106840.0,106830.0,0.046805]
[1734436564126,0.407603,106840.0,106830.0,0.10197538]
[1734436568224,0.3608,106840.0,106830.0,0.15714576]
[1734436568427,0.48537519,106850.0,106840.0,0.046801]
[1734436568621,0.48537519,106850.0,106840.0,0.10197138]
[1734436568818,0.48537519,106850.0,106840.0,0.15714176]
[1734436569128,0.43857719,106850.0,106840.0,0.15714176]
[1734436569431,0.07777719,106850.0,106840.0,0.15714176]
[1734436569932,0.00787719,106850.0,106840.0,0.15714176]
[1734436570128,0.40765988,106860.0,106840.0,0.15714176]
[1734436570328,0.36086588,106860.0,106850.0,0.10196638]
[1734436570817,0.40765788,106860.0,106850.0,0.10196638]
[1734436571824,0.36086588,106860.0,106850.0,0.10196638]
[1734436572019,0.36086588,106860.0,106850.0,0.13081951]
[1734436572623,6.588e-05,106860.0,106850.0,0.13081951]
[1734436573524,0.40765788,106860.0,106850.0,0.046796]
[1734436574122,0.40765788,106860.0,106850.0,0.13081951]
[1734436574321,0.36086588,106860.0,106850.0,0.13081951]
[1734436577029,6.588e-05,106860.0,106850.0,0.13081951]
[1734436578530,6.588e-05,106860.0,106850.0,0.49161951]
[1734436580034,6.588e-05,106860.0,106850.0,0.13081951]
[1734436580434,6.588e-05,106860.0,106850.0,0.49161951]
[1734436580937,6.588e-05,106860.0,106850.0,0.13081951]
[1734436581128,6.588e-05,106860.0,106850.0,0.49161951]
[1734436584246,6.588e-05,106860.0,106850.0,0.13081951]
[1734436584431,6.588e-05,106860.0,106850.0,0.49161951]
[1734436586236,6.588e-05,106860.0,106850.0,0.13081951]
[1734436586438,6.588e-05,106860.0,106850.0,0.49161951]
[1734436586639,6.588e-05,106860.0,106850.0,0.13081951]
[1734436590240,0.526089,106870.0,106850.0,0.13081951]
[1734436590434,0.165289,106870.0,106860.0,0.046792]
[1734436590633,0.526089,106870.0,106860.0,0.046792]
[1734436593930,0.1185,106870.0,106860.0,0.046792]
[1734436594135,0.1185,106870.0,106860.0,0.10192901]
[1734436594438,0.4793,106870.0,106860.0,0.10192901]
[1734436595138,0.1185,106870.0,106860.0,0.10192901]
[1734436595940,0.4793,106870.0,106860.0,0.10192901]
[1734436596842,0.1185,106870.0,106860.0,0.10192901]
[1734436597140,0.079,106870.0,106860.0,0.15706602]
[1734436597344,0.079,106870.0,106860.0,0.10192901]
[1734436597544,0.47035984,106880.0,106860.0,0.10192901]
[1734436597735,0.00763683,106880.0,106870.0,0.10202353]
[1734436597933,0.16106639,106890.0,106880.0,0.046783]
[1734436598136,0.16106639,106890.0,106880.0,0.10192001]
[1734436598334,0.11428639,106890.0,106880.0,0.11068799]
[1734436598748,0.47508639,106890.0,106880.0,0.11068799]
[1734436599545,0.422487,106890.0,106880.0,0.11068799]
[1734436599743,0.422487,106890.0,106880.0,0.10192001]
[1734436600138,0.422487,106890.0,106880.0,0.046783]
[1734436600139,0.52440301,106890.0,106880.0,0.046783]
[1734436600340,0.48232322,106890.0,106880.0,0.046783]
[1734436601649,0.49081661,106890.0,106880.0,0.046783]
[1734436605141,0.046783,106880.0,106870.0,0.04688452]
[1734436605443,0.51785702,106880.0,106870.0,9.852e-05]
[1734436605745,0.55575702,106880.0,106870.0,9.852e-05]
[1734436606058,0.5295172,106880.0,106870.0,9.852e-05]
[1734436606358,0.5295172,106880.0,106870.0,0.04688652]
[1734436607658,0.445483,106880.0,106870.0,0.04688652]
[1734436609253,0.407583,106880.0,106870.0,0.04688652]
[1734436611261,0.407583,106880.0,106870.0,0.05565504]
[1734436611644,0.4916172,106880.0,106870.0,0.05565504]
[1734436611840,0.4916172,106880.0,106870.0,0.00886704]
[1734436612044,0.5304172,106880.0,106870.0,0.00886704]
[1734436612253,0.5304172,106880.0,106870.0,0.05565504]
[1734436612448,0.5304172,106880.0,106870.0,0.04688652]
[1734436627960,0.5566688,106880.0,106870.0,0.04688652]
[1734436631359,0.5566688,106880.0,106870.0,9.852e-05]
[1734436635368,0.4627259,106880.0,106870.0,0.04688652]
[1734436636667,0.4627259,106880.0,106870.0,9.852e-05]
[1734436638669,0.407583,106880.0,106870.0,0.04688652]
[1734436638864,0.4627259,106880.0,106870.0,0.04688652]
[1734436639369,0.35497416,106880.0,106870.0,0.11079794]
[1734436639673,0.40175716,106880.0,106870.0,0.11079794]
[1734436640062,0.40175716,106880.0,106870.0,0.10202942]
[1734436642265,0.45690006,106880.0,106870.0,0.10202942]
[1734436643064,0.40175716,106880.0,106870.0,0.11079709]
[1734436643268,0.40175716,106880.0,106870.0,0.10202942]
[1734436643472,0.40175716,106880.0,106870.0,0.11079709]
[1734436644068,0.45690006,106880.0,106870.0,0.05565419]
[1734436644463,0.51204296,106880.0,106870.0,0.00886619]
[1734436644874,0.46995521,106880.0,106870.0,0.00886619]
[1734436645371,0.41481231,106880.0,106870.0,0.00886619]
[1734436646062,0.41481231,106880.0,106870.0,9.852e-05]
[1734436647280,0.46995521,106880.0,106870.0,9.852e-05]
[1734436647478,0.41481231,106880.0,106870.0,9.852e-05]
[1734436647685,0.46995521,106880.0,106870.0,9.852e-05]
[1734436647972,0.46995521,106880.0,106870.0,0.00886619]
[1734436648177,0.46995521,106880.0,106870.0,9.852e-05]
[1734436648478,0.41481231,106880.0,106870.0,9.852e-05]
[1734436649272,0.46995521,106880.0,106870.0,9.852e-05]
[1734436649479,0.36220234,106880.0,106870.0,0.00886619]
[1734436649671,0.41734524,106880.0,106870.0,0.00886619]
[1734436650168,0.41734524,106880.0,106860.0,0.165989]
[1734436650169,0.47248814,106880.0,106840.0,0.76771685]
[1734436650370,0.4627389,106850.0,106840.0,0.238209]
[1734436651177,0.4627389,106850.0,106840.0,0.85503083]
[1734436651384,0.4627389,106850.0,106840.0,0.85512802]
[1734436651879,0.4627389,106850.0,106840.0,0.23830619]
[1734436653776,0.4627389,106850.0,106840.0,0.29344909]
[1734436654783,0.4627389,106850.0,106840.0,0.23830619]
[1734436656678,0.4627389,106850.0,106840.0,0.29344909]
[1734436656873,0.407596,106850.0,106840.0,0.29344909]
[1734436657789,0.4627389,106850.0,106840.0,0.29344909]
[1734436658084,0.4627389,106850.0,106840.0,0.24665109]
[1734436658283,0.4627389,106850.0,106840.0,0.19150819]
[1734436659787,0.4627389,106850.0,106840.0,0.23830919]
[1734436659980,0.4627389,106850.0,106840.0,0.29345209]
[1734436660381,0.407596,106850.0,106840.0,0.29345209]
[1734436660675,0.4627389,106850.0,106840.0,0.23830919]
[1734436662885,0.4627389,106850.0,106840.0,0.15987864]
[1734436663079,0.5037389,106850.0,106840.0,0.15987864]
[1734436663285,0.5037389,106850.0,106840.0,0.15110819]
[1734436663286,0.5428389,106850.0,106840.0,0.15110819]
[1734436663580,0.5428389,106850.0,106840.0,9.719e-05]
[1734436670184,0.5979818,106850.0,106840.0,9.719e-05]
[1734436670684,0.5428389,106850.0,106840.0,9.719e-05]
[1734436670995,0.5979818,106850.0,106840.0,9.719e-05]
[1734436671582,0.5428389,106850.0,106840.0,9.719e-05]
[1734436672890,0.5979818,106850.0,106810.0,1.06369323]
[1734436673092,0.1019529,106820.0,106810.0,0.69456433]
[1734436673291,0.1019529,106820.0,106810.0,0.74970723]
[1734436673292,0.04681,106820.0,106810.0,0.74970723]
[1734436673694,0.04681,106820.0,106810.0,0.19068573]
[1734436673892,0.04681,106820.0,106810.0,0.19077269]
[1734436675497,0.04681,106820.0,106810.0,0.20948985]
[1734436675996,0.3608,106830.0,106810.0,0.20948985]
[1734436676202,0.407608,106830.0,106820.0,0.1429529]
[1734436680400,0.4627509,106830.0,106820.0,0.08781]
[1734436680593,0.4627509,106830.0,106820.0,0.1429529]
[1734436680794,0.04681,106820.0,106810.0,0.15434495]
[1734436681000,0.04681,106820.0,106810.0,0.20948785]
[1734436681999,0.04681,106820.0,106810.0,8.696e-05]
[1734436682000,0.5178958,106820.0,106810.0,8.696e-05]
[1734436682399,0.5595958,106820.0,106810.0,8.696e-05]
[1734436682600,0.5044529,106820.0,106810.0,8.696e-05]
[1734436682801,0.1436529,106820.0,106810.0,8.696e-05]
[1734436683108,0.5044529,106820.0,106810.0,8.696e-05]
[1734436683905,0.04681,106820.0,106810.0,0.10204386]
[1734436684114,0.04681,106820.0,106810.0,0.14304386]
[1734436684408,0.04681,106820.0,106810.0,0.18184386]
[1734436684605,0.5449666,106830.0,106810.0,0.80743614]
[1734436684806,0.5449666,106830.0,106820.0,0.55974043]
[1734436685008,0.5449666,106830.0,106820.0,0.56851088]
[1734436685212,0.5449666,106830.0,106820.0,0.55974043]
[1734436685697,0.5449666,106830.0,106810.0,0.84547169]
[1734436685899,0.04681,106820.0,106810.0,0.79866169]
[1734436686399,0.04681,106820.0,106810.0,0.18183986]
[1734436688412,0.04681,106820.0,106810.0,0.12669696]
[1734436688413,0.4627529,106820.0,106810.0,0.12669696]
[1734436688706,0.40761,106820.0,106810.0,0.12669696]
[1734436688919,0.4627529,106820.0,106810.0,0.12669696]
[1734436690201,0.4627529,106820.0,106810.0,0.04108696]
[1734436690401,0.5178958,106820.0,106810.0,0.61690879]
[1734436690610,0.4627529,106820.0,106810.0,0.61690879]
[1734436690801,0.4627529,106820.0,106810.0,0.04690096]